lending/lending_fUSD_20241005
["ID","MTS","AMOUNT","RATE_DAILY","PERIOD"]
[339927976,1728160248002,-150.0,0.00020466,2]
[339927977,1728160248011,-153.63575951,0.00020545,2]
[339927978,1728160248022,-1070.78996351,0.0002058,2]
[339927979,1728160248032,-150.0,0.00020606,2]
[339927980,1728160248042,-642.0,0.00020666,2]
[339927981,1728160248051,-150.0,0.00020954,2]
[339927982,1728160248061,-22952.65113799,0.00021,2]
[339927983,1728160248070,-500.0,0.00021,2]
[339927984,1728160248079,-150.0,0.00021035,2]
[339927985,1728160248248,-1000.0,0.000212,2]
[339927986,1728160248258,-1000.0,0.000213,2]
[339927987,1728160248268,-3000.0,0.000214,2]
[339927988,1728160248277,-552.24,0.00021823,2]
[339927989,1728160248285,-250.0,0.00021917,2]
[339927990,1728160248295,-208.18,0.00021918,2]
[339927991,1728160248304,-480.0,0.00021918,2]
[339927992,1728160248314,-160.21,0.00022137,30]
[339927993,1728160248323,-227.0,0.000222,2]
[339927994,1728160248332,-1000.0,0.00022466,2]
[339927995,1728160248341,-550.0,0.00023,2]
[339927996,1728160248351,-150.0,0.00023172,2]
[339927997,1728160248360,-189.37,0.000235,14]
[339927998,1728160248369,-552.24,0.00024087,2]
[339927999,1728160248378,-3000.0,0.000241,2]
[339928000,1728160248387,-500.0,0.00024657,2]
[339928001,1728160248397,-500.0,0.00024932,2]
[339928002,1728160248406,-600.0,0.00025,2]
[339928003,1728160248415,-158.61,0.00025882,2]
[339928004,1728160248424,-552.24,0.00026351,2]
[339928005,1728160248434,-1500.0,0.000268,2]
[339928006,1728160248443,-167.57908602,0.000269,2]
[339928007,1728160248452,-645.0,0.00026969,120]
[339928008,1728160248461,-645.0,0.00026979,120]
[339928009,1728160248470,-800.0,0.00026986,120]
[339928010,1728160248479,-800.0,0.00026986,120]
[339928011,1728160248489,-800.0,0.00026986,120]
[339928012,1728160248498,-800.0,0.00026986,120]
[339928013,1728160248507,-800.0,0.00026986,120]
[339928014,1728160248517,-800.0,0.00026986,120]
[339928015,1728160248526,-800.0,0.00026986,120]
[339928016,1728160248535,-645.0,0.00026989,120]
[339928017,1728160248544,-501.48928604,0.00026999,2]
[339928018,1728160248554,-650.0,0.00027,2]
[339928019,1728160248563,-408647.96323118,0.00027,7]
[339928020,1728160248572,-28261.93096722,0.00027166,2]
[339928021,1728160248581,-750.0,0.00027397,2]
[339928022,1728160248591,-200.0,0.00027397,60]
[339928023,1728160248600,-250.0,0.00027397,2]
[339928024,1728160248609,-160.21,0.00028274,30]
[339928025,1728160248618,-552.24,0.00028615,2]
[339928026,1728160248627,-700.0,0.00029,2]
[339928027,1728160248639,-150.0,0.00029589,7]
[339928028,1728160248649,-1500.0,0.000296,2]
[339928029,1728160248658,-56197.57299856,0.000299,2]
[339928030,1728160248667,-224.86654572,0.0002999,2]
[339928031,1728160248676,-50000.0,0.0003,20]
[339928032,1728160248685,-50000.0,0.0003,30]
[339928033,1728160248695,-10621.78417267,0.0003,2]
[339928034,1728160248708,-15271.30625721,0.0003,2]
[339928035,1728160248717,-1718.22774993,0.0003,2]
[339928036,1728160248726,-1008.77927591,0.0003,2]
[339928037,1728160248735,-884.12300889,0.0003,120]
[339928038,1728160248745,-151.0,0.0003,7]
[339928039,1728160248754,-156.0,0.0003,2]
[339928040,1728160248763,-151.0,0.0003,7]
[339928041,1728160248773,-388.92563463,0.00030111,5]
[339928042,1728160248783,-1000.0,0.00030136,2]
[339928043,1728160248792,-200.14555968,0.00030137,60]
[339928044,1728160248801,-150.0,0.00030685,7]
[339928045,1728160248811,-552.24,0.00030879,2]
[339928046,1728160248820,-50000.0,0.00031,21]
[339928047,1728160248829,-50000.0,0.00031,31]
[339928048,1728160248838,-500.0,0.00031,2]
[339928049,1728160248848,-500.0,0.00031,2]
[339928050,1728160248857,-500.0,0.00031,2]
[339928051,1728160248866,-500.0,0.00031,2]
[339928052,1728160248876,-500.0,0.00031,2]
[339928053,1728160248885,-500.0,0.00031,2]
[339928054,1728160248893,-500.0,0.00031,2]
[339928055,1728160248902,-500.0,0.00031,2]
[339928056,1728160248912,-750.0,0.00031,2]
[339928057,1728160248921,-500.0,0.00031,2]
[339928058,1728160248930,-500.0,0.00031,2]
[339928059,1728160248939,-500.0,0.00031,2]
[339928060,1728160248948,-500.0,0.00031,2]
[339928061,1728160248957,-500.0,0.00031,2]
[339928062,1728160248967,-500.0,0.00031,2]
[339928063,1728160248976,-500.0,0.00031,2]
[339928064,1728160248985,-500.0,0.00031,2]
[339928065,1728160248994,-500.0,0.00031,2]
[339928066,1728160249004,-500.0,0.00031,2]
[339928067,1728160249013,-500.0,0.00031,2]
[339928068,1728160249022,-500.0,0.00031,2]
[339928069,1728160249032,-500.0,0.00031,2]
[339928070,1728160249041,-500.0,0.00031,2]
[339928071,1728160249050,-500.0,0.00031,2]
[339928072,1728160249059,-500.0,0.00031,2]
[339928073,1728160249069,-500.0,0.00031,2]
[339928074,1728160249078,-500.0,0.00031,2]
[339928075,1728160249087,-500.0,0.00031,2]
[339928076,1728160249096,-500.0,0.00031,2]
[339928077,1728160249106,-500.0,0.00031,2]
[339928078,1728160249115,-500.0,0.00031,2]
[339928079,1728160249124,-500.0,0.00031,2]
[339928080,1728160249133,-500.0,0.00031,2]
[339928081,1728160249143,-500.0,0.00031,2]
[339928082,1728160249154,-500.0,0.00031,2]
[339928083,1728160249163,-500.0,0.00031,2]
[339928084,1728160249172,-500.0,0.00031,2]
[339928085,1728160249182,-500.0,0.00031,2]
[339928086,1728160249191,-500.0,0.00031,2]
[339928087,1728160249200,-500.0,0.00031,2]
[339928088,1728160249209,-500.0,0.00031,2]
[339928089,1728160249218,-500.0,0.00031,2]
[339928090,1728160249228,-500.0,0.00031,2]
[339928091,1728160249237,-500.0,0.00031,2]
[339928092,1728160249246,-500.0,0.00031,2]
[339928093,1728160249256,-500.0,0.00031,2]
[339928094,1728160249265,-500.0,0.00031,2]
[339928095,1728160249282,-500.0,0.00031,2]
[339928096,1728160249291,-500.0,0.00031,2]
[339928097,1728160249300,-500.0,0.00031,2]
[339928098,1728160249309,-500.0,0.00031,2]
[339928099,1728160249317,-500.0,0.00031,2]
[339928100,1728160249327,-500.0,0.00031,2]
[339928101,1728160249336,-500.0,0.00031,2]
[339928102,1728160249346,-500.0,0.00031,2]
[339928103,1728160249355,-500.0,0.00031,2]
[339928104,1728160249364,-500.0,0.00031,2]
[339928105,1728160249375,-500.0,0.00031,2]
[339928106,1728160249384,-500.0,0.00031,2]
[339928107,1728160249393,-500.0,0.00031,2]
[339928108,1728160249402,-500.0,0.00031,2]
[339928109,1728160249411,-500.0,0.00031,2]
[339928110,1728160249421,-500.0,0.00031,2]
[339928111,1728160249430,-500.0,0.00031,2]
[339928112,1728160249439,-500.0,0.00031,2]
[339928113,1728160249448,-500.0,0.00031,2]
[339928114,1728160249457,-500.0,0.00031,2]
[339928115,1728160249466,-500.0,0.00031,2]
[339928116,1728160249475,-500.0,0.00031,2]
[339928117,1728160249484,-500.0,0.00031,2]
[339928118,1728160249494,-500.0,0.00031,2]
[339928119,1728160249503,-500.0,0.00031,2]
[339928120,1728160249512,-500.0,0.00031,2]
[339928121,1728160249525,-500.0,0.00031,2]
[339928122,1728160249536,-500.0,0.00031,2]
[339928123,1728160249545,-500.0,0.00031,2]
[339928124,1728160249554,-500.0,0.00031,2]
[339928125,1728160249563,-500.0,0.00031,2]
[339928126,1728160249572,-500.0,0.00031,2]
[339928127,1728160249582,-500.0,0.00031,2]
[339928128,1728160249591,-500.0,0.00031,2]
[339928129,1728160249600,-500.0,0.00031,2]
[339928130,1728160249609,-500.0,0.00031,2]
[339928131,1728160249618,-500.0,0.00031,2]
[339928132,1728160249627,-500.0,0.00031,2]
[339928133,1728160249636,-500.0,0.00031,2]
[339928134,1728160249646,-500.0,0.00031,2]
[339928135,1728160249655,-500.0,0.00031,2]
[339928136,1728160249665,-500.0,0.00031,2]
[339928137,1728160249674,-500.0,0.00031,2]
[339928138,1728160249682,-500.0,0.00031,2]
[339928139,1728160249692,-500.0,0.00031,2]
[339928140,1728160249703,-500.0,0.00031,2]
[339928141,1728160249712,-500.0,0.00031,2]
[339928142,1728160249721,-500.0,0.00031,2]
[339928143,1728160249730,-500.0,0.00031,2]
[339928144,1728160249740,-500.0,0.00031,2]
[339928145,1728160249749,-500.0,0.00031,2]
[339928146,1728160249759,-500.0,0.00031,2]
[339928147,1728160249768,-500.0,0.00031,2]
[339928148,1728160249777,-500.0,0.00031,2]
[339928149,1728160249787,-500.0,0.00031,2]
[339928150,1728160249797,-500.0,0.00031,2]
[339928151,1728160249807,-500.0,0.00031,2]
[339928152,1728160249816,-500.0,0.00031,2]
[339928153,1728160249826,-500.0,0.00031,2]
[339928154,1728160249835,-500.0,0.00031,2]
[339928155,1728160249845,-500.0,0.00031,2]
[339928156,1728160249854,-500.0,0.00031,2]
[339928157,1728160249863,-500.0,0.00031,2]
[339928158,1728160249872,-500.0,0.00031,2]
[339928159,1728160249881,-500.0,0.00031,2]
[339928160,1728160249890,-500.0,0.00031,2]
[339928161,1728160249899,-500.0,0.00031,2]
[339928162,1728160249909,-500.0,0.00031,2]
[339928163,1728160249918,-500.0,0.00031,2]
[339928164,1728160249927,-500.0,0.00031,2]
[339928165,1728160249937,-500.0,0.00031,2]
[339928166,1728160249947,-500.0,0.00031,2]
[339928167,1728160249956,-500.0,0.00031,2]
[339928168,1728160249965,-500.0,0.00031,2]
[339928169,1728160249974,-500.0,0.00031,2]
[339928170,1728160249983,-500.0,0.00031,2]
[339928171,1728160249992,-500.0,0.00031,2]
[339928172,1728160250001,-500.0,0.00031,2]
[339928173,1728160250010,-500.0,0.00031,2]
[339928174,1728160250020,-500.0,0.00031,2]
[339928175,1728160250028,-500.0,0.00031,2]
[339928176,1728160250037,-500.0,0.00031,2]
[339928177,1728160250047,-500.0,0.00031,2]
[339928178,1728160250056,-500.0,0.00031,2]
[339928179,1728160250065,-500.0,0.00031,2]
[339928180,1728160250074,-500.0,0.00031,2]
[339928181,1728160250083,-500.0,0.00031,2]
[339928182,1728160250093,-500.0,0.00031,2]
[339928183,1728160250101,-500.0,0.00031,2]
[339928184,1728160250110,-500.0,0.00031,2]
[339928185,1728160250119,-500.0,0.00031,2]
[339928186,1728160250128,-500.0,0.00031,2]
[339928187,1728160250137,-500.0,0.00031,2]
[339928188,1728160250146,-500.0,0.00031,2]
[339928189,1728160250155,-500.0,0.00031,2]
[339928190,1728160250164,-500.0,0.00031,2]
[339928191,1728160250173,-500.0,0.00031,2]
[339928192,1728160250181,-500.0,0.00031,2]
[339928193,1728160250191,-500.0,0.00031,2]
[339928194,1728160250199,-500.0,0.00031,2]
[339928195,1728160250209,-500.0,0.00031,2]
[339928196,1728160250217,-500.0,0.00031,2]
[339928197,1728160250226,-500.0,0.00031,2]
[339928198,1728160250235,-500.0,0.00031,2]
[339928199,1728160250244,-500.0,0.00031,2]
[339928200,1728160250253,-500.0,0.00031,2]
[339928201,1728160250262,-500.0,0.00031,2]
[339928202,1728160250271,-500.0,0.00031,2]
[339928203,1728160250281,-500.0,0.00031,2]
[339928204,1728160250290,-500.0,0.00031,2]
[339928205,1728160250299,-500.0,0.00031,2]
[339928206,1728160250308,-500.0,0.00031,2]
[339928207,1728160250317,-500.0,0.00031,2]
[339928208,1728160250326,-500.0,0.00031,2]
[339928209,1728160250334,-500.0,0.00031,2]
[339928210,1728160250343,-500.0,0.00031,2]
[339928211,1728160250352,-500.0,0.00031,2]
[339928212,1728160250361,-500.0,0.00031,2]
[339928213,1728160250370,-1773.93670536,0.00031082,3]
[339928214,1728160250380,-27015.45967625,0.0003121,2]
[339928215,1728160250389,-150.0,0.00031781,7]
[339928216,1728160250398,-645.0,0.0003198,120]
[339928217,1728160250407,-645.0,0.0003199,120]
[339928218,1728160250416,-50000.0,0.00032,22]
[339928219,1728160250425,-50000.0,0.00032,32]
[339928220,1728160250434,-300.0,0.00032,20]
[339928221,1728160250443,-194.0,0.00032082,30]
[339928222,1728160250452,-859.0,0.00032082,30]
[339928223,1728160250461,-1933.96040282,0.00032082,30]
[339928224,1728160250470,-1598.67069935,0.00032082,30]
[339928225,1728160250479,-1702.83183445,0.00032082,15]
[339928226,1728160250488,-998.24824261,0.00032082,2]
[339928227,1728160250497,-26148.78440081,0.00032082,30]
[339928228,1728160250506,-159929.88697659,0.00032082,7]
[339928229,1728160250515,-1704.13633524,0.00032082,30]
[339928230,1728160250524,-1410.74294053,0.00032082,30]
[339928231,1728160250533,-161.00943589,0.00032082,120]
[339928232,1728160250542,-933.217514,0.00032082,120]
[339928233,1728160250551,-3562.18516263,0.000328,2]
[339928234,1728160250560,-1250.0,0.00032876,2]
[339928235,1728160250569,-999.0,0.00032876,120]
[339928236,1728160250578,-324.29,0.00032877,2]
[339928237,1728160250587,-56660.46,0.00032877,2]
[339928238,1728160250596,-1500.0,0.00032877,50]
[339928239,1728160250606,-150.85097069,0.00032877,7]
[339928240,1728160250615,-50000.0,0.00033,23]
[339928241,1728160250623,-50000.0,0.00033,33]
[339928242,1728160250632,-24627.50074529,0.00033,2]
[339928243,1728160250642,-800.0,0.00033,2]
[339928244,1728160250651,-150.0,0.00033,14]
[339928245,1728160250660,-151.0,0.00033,7]
[339928246,1728160250668,-156.0,0.00033,2]
[339928247,1728160250677,-552.24,0.00033143,2]
[339928248,1728160250686,-208.18,0.00033151,120]
[339928249,1728160250699,-480.0,0.00033151,120]
[339928250,1728160250708,-1145.86905338,0.000335,2]
[339928251,1728160250716,-151.0,0.000335,7]
[339928252,1728160250725,-151.0,0.000335,7]
[339928253,1728160250733,-151.0,0.000335,7]
[339928254,1728160250743,-151.0,0.000335,7]
[339928255,1728160250753,-151.0,0.000335,7]
[339928256,1728160250763,-151.0,0.000335,7]
[339928257,1728160250774,-151.0,0.000335,7]
[339928258,1728160250783,-151.0,0.00033571,2]
[339928259,1728160250793,-2923.7,0.00033844,2]
[339928260,1728160250802,-999.0,0.00033972,120]
[339928261,1728160250812,-50000.0,0.00034,24]
[339928262,1728160250821,-50000.0,0.00034,34]
[339928263,1728160250830,-160.21,0.00034411,120]
[339928264,1728160250839,-733.86978793,0.000349,120]
[339928265,1728160250848,-50000.0,0.00035,25]
[339928266,1728160250857,-50000.0,0.00035,35]
[339928267,1728160250867,-850.0,0.00035,2]
[339928268,1728160250876,-267.048062,0.00035,7]
[339928269,1728160250885,-999.0,0.00035068,120]
[339928270,1728160250893,-150.0,0.0003535,120]
[339928271,1728160250902,-552.24,0.00035407,2]
[339928272,1728160250912,-317.655,0.00035585,42]
[339928273,1728160250921,-1500.0,0.00035616,2]
[339928274,1728160250930,-50000.0,0.00036,26]
[339928275,1728160250939,-50000.0,0.00036,36]
[339928276,1728160250949,-156.0,0.00036,2]
[339928277,1728160250958,-999.0,0.00036164,120]
[339928278,1728160250968,-190.87,0.000363,30]
[339928279,1728160250977,-150.0,0.00036452,120]
[339928280,1728160250986,-152.0,0.0003667,3]
[339928281,1728160250995,-150.0,0.00036871,120]
[339928282,1728160251004,-500.0,0.00036873,5]
[339928283,1728160251013,-363122.07917351,0.0003688,2]
[339928284,1728160251022,-151.0,0.0003688,7]
[339928285,1728160251031,-280.104999,0.0003688,7]
[339928286,1728160251040,-280.104999,0.0003688,7]
[339928287,1728160251049,-151.0,0.0003688,7]
[339928288,1728160251058,-151.0,0.0003688,7]
[339928289,1728160251067,-151.0,0.0003688,7]
[339928290,1728160251077,-151.0,0.0003688,7]
[339928291,1728160251087,-151.0,0.0003688,7]
[339928292,1728160251096,-151.0,0.0003688,7]
[339928293,1728160251105,-151.0,0.0003688,7]
[339928294,1728160251114,-151.0,0.0003688,7]
[339928295,1728160251123,-151.0,0.0003688,7]
[339928296,1728160251132,-5371.98432999,0.0003688,2]
[339928297,1728160251141,-151.0,0.0003688,7]
[339928298,1728160251150,-50000.0,0.00037,27]
[339928299,1728160251159,-50000.0,0.00037,37]
[339928300,1728160251168,-808.0,0.00037,2]
[339928301,1728160251178,-295.22384,0.00037,7]
[339928302,1728160251187,-295.22384,0.00037,7]
[339928303,1728160251196,-151.0,0.00037,7]
[339928304,1728160251205,-151.0,0.00037,7]
[339928305,1728160251214,-900.0,0.00037,2]
[339928306,1728160251223,-151.0,0.00037,7]
[339928307,1728160251233,-199.235674,0.00037,7]
[339928308,1728160251242,-208.741426,0.00037,7]
[339928309,1728160251251,-151.0,0.00037,7]
[339928310,1728160251261,-151.0,0.00037,7]
[339928311,1728160251271,-151.0,0.00037,7]
[339928312,1728160251280,-151.0,0.00037,7]
[339928313,1728160251289,-151.78270101,0.000372,103]
[339928314,1728160251299,-151.78270101,0.000372,103]
[339928315,1728160251308,-999.0,0.0003726,120]
[339928316,1728160251318,-1000.0,0.0003726,30]
[339928317,1728160251327,-500.0,0.00037328,60]
[339928318,1728160251336,-900.0,0.00037328,60]
[339928319,1728160251346,-2800.0,0.00037328,60]
[339928320,1728160251356,-3800.0,0.00037328,60]
[339928321,1728160251365,-150.0,0.00037347,120]
[339928322,1728160251374,-151.100605,0.00037498,120]
[339928323,1728160251384,-552.24,0.00037671,2]
[339928324,1728160251392,-500.0,0.00037876,60]
[339928325,1728160251402,-900.0,0.00037876,60]
[339928326,1728160251411,-2800.0,0.00037876,60]
[339928327,1728160251421,-3800.0,0.00037876,60]
[339928328,1728160251430,-50000.0,0.00038,28]
[339928329,1728160251439,-50000.0,0.00038,38]
[339928330,1728160251448,-1000.0,0.00038,2]
[339928331,1728160251458,-151.0,0.00038,7]
[339928332,1728160251467,-151.0,0.00038,7]
[339928333,1728160251476,-151.0,0.00038,7]
[339928334,1728160251485,-151.0,0.00038,7]
[339928335,1728160251494,-653.4,0.0003823,120]
[339928336,1728160251503,-645.0,0.0003824,120]
[339928337,1728160251512,-529.01956998,0.00038242,5]
[339928338,1728160251521,-1000.0,0.00038356,14]
[339928339,1728160251531,-1000.0,0.00038356,14]
[339928340,1728160251540,-1000.0,0.00038356,14]
[339928341,1728160251549,-1000.0,0.00038356,14]
[339928342,1728160251558,-1000.0,0.00038356,14]
[339928343,1728160251567,-1000.0,0.00038356,14]
[339928344,1728160251576,-1000.0,0.00038356,14]
[339928345,1728160251585,-1000.0,0.00038356,14]
[339928346,1728160251594,-1000.0,0.00038356,14]
[339928347,1728160251604,-1000.0,0.00038356,14]
[339928348,1728160251615,-574.386207,0.00038356,30]
[339928349,1728160251624,-500.0,0.00038356,30]
[339928350,1728160251633,-324.65637269,0.00038356,30]
[339928351,1728160251643,-500.0,0.00038356,30]
[339928352,1728160251652,-500.0,0.00038356,30]
[339928353,1728160251662,-500.0,0.00038356,30]
[339928354,1728160251671,-500.0,0.00038356,30]
[339928355,1728160251680,-500.0,0.00038356,30]
[339928356,1728160251689,-500.0,0.00038356,30]
[339928357,1728160251698,-500.0,0.00038356,2]
[339928358,1728160251708,-500.0,0.00038356,30]
[339928359,1728160251717,-500.77798914,0.00038356,2]
[339928360,1728160251726,-500.0,0.00038356,30]
[339928361,1728160251736,-500.0,0.00038356,30]
[339928362,1728160251745,-500.0,0.00038356,30]
[339928363,1728160251755,-500.0,0.00038356,30]
[339928364,1728160251764,-500.0,0.00038356,30]
[339928365,1728160251774,-500.0,0.00038356,30]
[339928366,1728160251783,-500.0,0.00038356,30]
[339928367,1728160251793,-428.75489551,0.00038356,30]
[339928368,1728160251803,-500.0,0.00038356,30]
[339928369,1728160251814,-500.0,0.00038356,30]
[339928370,1728160251823,-500.0,0.00038356,30]
[339928371,1728160251833,-500.0,0.00038356,30]
[339928372,1728160251844,-500.0,0.00038356,30]
[339928373,1728160251854,-500.0,0.00038356,30]
[339928374,1728160251863,-500.0,0.00038356,30]
[339928375,1728160251872,-500.0,0.00038356,30]
[339928376,1728160251883,-500.0,0.00038356,30]
[339928377,1728160251894,-361.78278719,0.00038356,30]
[339928378,1728160251904,-500.0,0.00038356,30]
[339928379,1728160251913,-500.0,0.00038356,30]
[339928380,1728160251924,-500.0,0.00038356,30]
[339928381,1728160251934,-500.0,0.00038356,30]
[339928382,1728160251943,-500.0,0.00038356,30]
[339928383,1728160251952,-363.09321307,0.00038356,30]
[339928384,1728160251962,-199.12946249,0.00038356,30]
[339928385,1728160251971,-500.0,0.00038356,30]
[339928386,1728160252135,-500.0,0.00038356,30]
[339928387,1728160252145,-453.38703259,0.00038356,30]
[339928388,1728160252155,-500.0,0.00038356,30]
[339928389,1728160252164,-500.0,0.00038356,30]
[339928390,1728160252173,-819.04,0.00038356,30]
[339928391,1728160252183,-500.0,0.00038356,30]
[339928392,1728160252192,-500.0,0.00038356,30]
[339928393,1728160252202,-500.0,0.00038356,30]
[339928394,1728160252211,-500.0,0.00038356,30]
[339928395,1728160252221,-500.0,0.00038356,30]
[339928396,1728160252230,-500.0,0.00038356,30]
[339928397,1728160252239,-500.0,0.00038356,30]
[339928398,1728160252249,-500.0,0.00038356,30]
[339928399,1728160252258,-500.0,0.00038356,30]
[339928400,1728160252267,-500.0,0.00038356,30]
[339928401,1728160252278,-500.0,0.00038356,30]
[339928402,1728160252287,-500.0,0.00038356,30]
[339928403,1728160252296,-649.84284518,0.00038356,2]
[339928404,1728160252305,-500.0,0.00038356,30]
[339928405,1728160252314,-500.0,0.00038356,30]
[339928406,1728160252323,-500.0,0.00038356,2]
[339928407,1728160252333,-500.0,0.00038356,30]
[339928408,1728160252342,-500.0,0.00038356,30]
[339928409,1728160252352,-500.0,0.00038356,30]
[339928410,1728160252361,-500.0,0.00038356,30]
[339928411,1728160252370,-500.0,0.00038356,30]
[339928412,1728160252379,-271.495954,0.00038356,7]
[339928413,1728160252389,-500.0,0.00038356,30]
[339928414,1728160252399,-271.495954,0.00038356,7]
[339928415,1728160252408,-353.50408825,0.00038356,30]
[339928416,1728160252418,-713.62,0.00038356,30]
[339928417,1728160252427,-500.0,0.00038356,30]
[339928418,1728160252437,-500.0,0.00038356,30]
[339928419,1728160252447,-500.0,0.00038356,30]
[339928420,1728160252456,-500.0,0.00038356,30]
[339928421,1728160252465,-500.0,0.00038356,30]
[339928422,1728160252476,-500.0,0.00038356,30]
[339928423,1728160252485,-500.0,0.00038356,30]
[339928424,1728160252495,-500.0,0.00038356,30]
[339928425,1728160252504,-500.0,0.00038356,30]
[339928426,1728160252513,-500.0,0.00038356,30]
[339928427,1728160252523,-500.0,0.00038356,30]
[339928428,1728160252533,-500.0,0.00038356,30]
[339928429,1728160252542,-257.652575,0.00038356,30]
[339928430,1728160252551,-500.0,0.00038356,30]
[339928431,1728160252560,-500.0,0.00038356,30]
[339928432,1728160252570,-500.0,0.00038356,30]
[339928433,1728160252579,-500.0,0.00038356,30]
[339928434,1728160252589,-500.0,0.00038356,30]
[339928435,1728160252599,-501.4790958,0.00038356,30]
[339928436,1728160252608,-500.0,0.00038356,30]
[339928437,1728160252619,-500.0,0.00038356,30]
[339928438,1728160252628,-500.0,0.00038356,30]
[339928439,1728160252637,-500.0,0.00038356,30]
[339928440,1728160252646,-500.0,0.00038356,30]
[339928441,1728160252655,-500.0,0.00038356,30]
[339928442,1728160252664,-564.15113601,0.00038356,30]
[339928443,1728160252674,-500.0,0.00038356,30]
[339928444,1728160252683,-500.0,0.00038356,30]
[339928445,1728160252692,-500.0,0.00038356,2]
[339928446,1728160252704,-500.0,0.00038356,30]
[339928447,1728160252714,-500.0,0.00038356,30]
[339928448,1728160252723,-500.0,0.00038356,30]
[339928449,1728160252732,-20000.0,0.00038356,2]
[339928450,1728160252742,-526.03,0.00038356,30]
[339928451,1728160252752,-500.0,0.00038356,30]
[339928452,1728160252761,-500.0,0.00038356,30]
[339928453,1728160252770,-500.0,0.00038356,30]
[339928454,1728160252790,-315.45,0.00038356,30]
[339928455,1728160252799,-500.0,0.00038356,30]
[339928456,1728160252809,-560.25,0.00038356,30]
[339928457,1728160252819,-500.0,0.00038356,30]
[339928458,1728160252828,-500.0,0.00038356,30]
[339928459,1728160252837,-500.0,0.00038356,30]
[339928460,1728160252846,-500.0,0.00038356,30]
[339928461,1728160252855,-500.0,0.00038356,30]
[339928462,1728160252864,-590.80730619,0.00038356,30]
[339928463,1728160252874,-500.0,0.00038356,30]
[339928464,1728160252884,-500.0,0.00038356,30]
[339928465,1728160252893,-500.0,0.00038356,30]
[339928466,1728160252903,-500.0,0.00038356,30]
[339928467,1728160252912,-500.0,0.00038356,30]
[339928468,1728160252922,-500.0,0.00038356,30]
[339928469,1728160252931,-643.81591818,0.00038356,30]
[339928470,1728160252941,-500.0,0.00038356,30]
[339928471,1728160252951,-500.0,0.00038356,30]
[339928472,1728160252961,-546.22,0.00038356,30]
[339928473,1728160252970,-500.0,0.00038356,30]
[339928474,1728160252980,-500.0,0.00038356,30]
[339928475,1728160252990,-500.0,0.00038356,30]